fUST/lending_fUST_20240614
["ID","MTS","AMOUNT","RATE_DAILY","PERIOD"]
[329428966,1718334660873,-500.0,0.00019719,2]
[329428968,1718334660885,-639.47,0.00019719,2]
[329428969,1718334660897,-830.4,0.00019719,2]
[329428970,1718334660921,-1387.62,0.00019723,2]
[329428971,1718334660935,-500.0,0.00019723,2]
[329428972,1718334660947,-500.0,0.00019723,2]
[329428973,1718334660964,-554.69,0.00019723,2]
[329428974,1718334660978,-500.0,0.00019724,2]
[329428975,1718334661004,-634.45196766,0.00019724,2]
[329428977,1718334661114,-476.83649049,0.00018045,2]
[329428978,1718334661133,-699.07840469,0.00018352,2]
[329428981,1718334661164,-233.09803234,0.00019724,2]
[329428983,1718334661181,-1162.64,0.00019724,2]
[329428985,1718334661195,-854.08,0.00019724,2]
[329428987,1718334661211,-1934.82,0.00019724,2]
[329428989,1718334661232,-225.859241,0.00019724,2]
[329428991,1718334661251,-1067.30653141,0.00019788,2]
[329428993,1718334661276,-3803.81794942,0.00019788,2]
[329429099,1718335223076,1456.65794785,0.0001,2]
[329429102,1718335661729,1456.65794785,0.0001,2]
[329429125,1718335836628,-1456.65794785,0.00014898,2]
[329429126,1718335836639,-190.3183976,0.00014899,2]
[329429127,1718335836650,-2377.15923782,0.00014899,2]
[329429128,1718335836681,-2870.47151338,0.00014899,2]
[329429129,1718335836714,-502.4247062,0.00014899,2]
[329429130,1718335836734,-1393.84860971,0.000156,2]
[329429131,1718335836764,-6926.82402391,0.000156,2]
[329429192,1718335841886,-4061.5164133,0.000156,2]
[329429193,1718335841900,-5913.45478442,0.000156,2]
[329429221,1718335846871,-660.44463536,0.000156,2]
[329429236,1718335847167,-5933.9115333,0.000156,2]
[329429238,1718335847178,-368.800225,0.00016164,2]
[329429240,1718335847190,-394.28367128,0.000164,2]
[329429241,1718335847211,-275.75376351,0.000165,2]
[329429243,1718335847227,-4017.7036018,0.00016984,2]
[329429246,1718335847257,-500.0,0.00017256,2]
[329429248,1718335847271,-500.0,0.00017256,2]
[329429252,1718335847294,-500.0,0.00017256,2]
[329429255,1718335847323,-867.26,0.00017256,2]
[329429258,1718335847346,-629.76,0.00017257,2]
[329429263,1718335847393,-684.25,0.0001753,2]
[329429267,1718335847417,-500.0,0.0001753,2]
[329429271,1718335847472,-853.0,0.0001753,2]
[329429274,1718335847483,-500.0,0.0001753,2]
[329429275,1718335847495,-500.0,0.0001753,2]
[329429278,1718335847511,-500.0,0.0001753,2]
[329429282,1718335847528,-500.0,0.0001753,2]
[329429284,1718335847541,-500.0,0.0001753,2]
[329429285,1718335847570,-867.26,0.0001753,2]
[329429289,1718335847588,-519.0,0.0001753,2]
[329429291,1718335847599,-629.76,0.00017531,2]
[329429293,1718335847636,-410.6873722,0.00017699,2]
[329429298,1718335847666,-684.25,0.00017804,2]
[329429300,1718335847690,-109.39599923,0.00017804,2]
[329429319,1718335847910,-390.60400077,0.00017804,2]
[329429321,1718335847923,-267.50965875,0.00017804,2]
[329429330,1718335848043,-585.49034125,0.00017804,2]
[329429332,1718335848061,-500.0,0.00017804,2]
[329429335,1718335848097,-500.0,0.00017804,2]
[329429336,1718335848111,-500.0,0.00017804,2]
[329429339,1718335848139,-77.94092518,0.00017804,2]
[329429341,1718335848193,-422.05907482,0.00017804,2]
[329429344,1718335848212,-500.0,0.00017804,2]
[329429346,1718335848252,-867.26,0.00017804,2]
[329429348,1718335848265,-519.0,0.00017804,2]
[329429350,1718335848282,-629.76,0.00017805,2]
[329429352,1718335848297,-723.00565488,0.000179,2]
[329429354,1718335848311,-1355.95807405,0.00018,2]
[329429356,1718335848331,-2766.15696949,0.00018,2]
[329429358,1718335848348,-877.05746171,0.00018,2]
[329429359,1718335848372,-476.83649049,0.00018,2]
[329429362,1718335848388,-488.78423547,0.0001805,2]
[329429364,1718335848438,-293.97190956,0.0001805,2]
[329429366,1718335848454,-684.25,0.00018078,2]
[329429368,1718335848471,-500.0,0.00018078,2]
[329429370,1718335848485,-853.0,0.00018078,2]
[329429372,1718335848500,-500.0,0.00018078,2]
[329429373,1718335848529,-500.0,0.00018078,2]
[329429374,1718335848559,-500.0,0.00018078,2]
[329429376,1718335848573,-500.0,0.00018078,2]
[329429378,1718335848588,-500.0,0.00018078,2]
[329429381,1718335848618,-867.26,0.00018078,2]
[329429384,1718335848635,-519.0,0.00018078,2]
[329429386,1718335848666,-629.76,0.00018079,2]
[329429389,1718335848678,-723.00565487,0.00018164,2]
[329429390,1718335848702,-454.30790438,0.00018348,2]
[329429394,1718335848744,-542.22,0.00018348,2]
[329429397,1718335848786,-533.8,0.00018348,2]
[329429399,1718335848800,-1209.26,0.00018348,2]
[329429403,1718335848814,-684.25,0.00018352,2]
[329429407,1718335848847,-500.0,0.00018352,2]
[329429409,1718335848886,-853.0,0.00018352,2]
[329429411,1718335848917,-500.0,0.00018352,2]
[329429414,1718335848944,-500.0,0.00018352,2]
[329429416,1718335848958,-500.0,0.00018352,2]
[329429418,1718335848984,-500.0,0.00018352,2]
[329429419,1718335849003,-500.0,0.00018352,2]
[329429421,1718335849015,-867.26,0.00018352,2]
[329429424,1718335849039,-519.0,0.00018352,2]
[329429427,1718335849087,-629.76,0.00018353,2]
[329429430,1718335849110,-431.05841502,0.00018421,2]
[329429432,1718335849132,-723.00565487,0.00018427,2]
[329429434,1718335849150,-33128.17388104,0.00018427,2]
[329429525,1718335850791,-878.92675256,0.00015599,2]
[329429529,1718335850860,-577.73119529,0.00015599,2]
[329429531,1718335850878,-384.08091794,0.00018427,2]
[329430121,1718336325481,56986.15853506,9.999e-05,2]
[329430125,1718336478260,1984.88777217,9.999e-05,2]
[329431033,1718337467055,1098.90888303,0.00023,30]
[329431352,1718338638890,1398.05703776,9.999e-05,2]
[329431353,1718339182436,1502.29960524,9.999e-05,2]
[329431354,1718339186468,182.13119761,9.999e-05,2]
[329431356,1718339328592,1282.73943489,9.999e-05,2]
[329431357,1718339364951,592.41,0.00010959,2]
[329431358,1718339385888,315.15,0.00010959,2]
[329431359,1718339392824,686.7970143,9.999e-05,2]
[329431360,1718339396416,262.63,0.00010959,2]
[329431361,1718339397082,155.01550155,9.999e-05,2]
[329431362,1718339399398,157.82693502,9.999e-05,2]
[329431363,1718339402904,155.01550155,9.999e-05,2]
[329431364,1718339407025,218.86,0.00010959,2]
[329431365,1718339410135,1343.96140239,9.999e-05,2]
[329431367,1718339413522,1984.88777217,9.999e-05,2]
[329431368,1718339417579,182.38,0.00010959,2]
[329431369,1718339428052,151.98,0.00010959,2]
[329431378,1718339433007,195.22012594,9.999e-05,2]
[329431416,1718339434464,-302.0,0.00015998,2]
[329431439,1718339438619,759.95,0.00010959,2]
[329431470,1718339443288,-1200.29960524,0.00015998,2]
[329431471,1718339443302,-300.0,0.00015999,2]
[329431472,1718339443318,-1397.53148145,0.00016,2]
[329431478,1718339443725,-5836.78316816,0.00016,2]
[329431479,1718339443743,-377.35956123,0.00016,2]
[329431480,1718339443760,-2000.63215989,0.00016,2]
[329431531,1718339446885,-1832.10162298,0.00016,2]
[329431533,1718339446896,-500.0,0.00016043,2]
[329431535,1718339446908,-350.360213,0.00016164,2]
[329431537,1718339446932,-2317.53712672,0.000164,2]
[329431542,1718339446989,-769.29640502,0.000164,2]
[329431544,1718339447020,-394.28367128,0.00016499,2]
[329431546,1718339447031,-153.0,0.000165,2]
[329431549,1718339447047,-292.64536,0.000165,2]
[329431550,1718339447058,-153.0,0.000165,2]
[329431551,1718339447075,-292.64536,0.000165,2]
[329431553,1718339447092,-292.64536,0.000165,2]
[329431555,1718339447106,-275.75376351,0.00016599,2]
[329431557,1718339447121,-153.0,0.000166,2]
[329431559,1718339447134,-292.64536,0.000166,2]
[329431561,1718339447168,-292.5249381,0.000167,2]
[329431563,1718339447183,-273.9253654,0.000167,2]
[329431565,1718339447233,-153.0,0.000167,2]
[329431569,1718339447250,-153.0,0.000167,2]
[329431571,1718339447280,-292.64536,0.000168,2]
[329431573,1718339447302,-291.9228286,0.000168,2]
[329431575,1718339447313,-429.20834566,0.0001689,2]
[329431591,1718339447491,-359.50100004,0.00015919,2]
[329431657,1718339448482,-569.54795536,0.00015919,2]
[329431659,1718339448498,-2917.02049617,0.0001689,2]
[329431661,1718339448530,-269.70439979,0.0001689,2]
[329431662,1718339448552,-153.0,0.00016959,2]
[329431664,1718339448584,-153.0,0.00016959,2]
[329431665,1718339448607,-153.0,0.00016959,2]
[329431667,1718339448632,-306.4365224,0.00017068,2]
[329431669,1718339448645,-410.716237,0.00017068,2]
[329431671,1718339448656,-292.5249381,0.00017233,2]
[329431674,1718339448671,-798.48470399,0.00017498,2]
[329431676,1718339448683,-372.87152471,0.00017596,2]
[329431678,1718339448724,-187.92369689,0.00017596,2]
[329431680,1718339448737,-2309.07218887,0.00017596,2]
[329431683,1718339448750,-353.12228936,0.00017596,2]
[329431726,1718339449655,-449.41213733,0.00017596,2]
[329431728,1718339449685,-50.58786267,0.00017596,2]
[329431733,1718339449765,-637.48297914,0.00017596,2]
[329431735,1718339449778,-155.23255067,0.00017596,2]
[329431737,1718339449803,-158.1205067,0.00017596,2]
[329431738,1718339449816,-155.11878321,0.00017596,2]
[329431740,1718339449832,-1343.22161047,0.00017596,2]
[329431741,1718339449858,-269.59593738,0.00017596,2]
[329431744,1718339449883,-195.13805237,0.00017596,2]
[329431746,1718339449903,-927.77008751,0.00017597,2]
[329431748,1718339449921,-19850.17835506,0.00017598,15]
[329431750,1718339449955,-151.0,0.00017598,2]
[329431752,1718339449973,-151.0,0.00017598,2]
[329431754,1718339449985,-123474.33574747,0.00017598,2]
[329431758,1718339450026,-46495.85918992,0.00017598,2]
[329437613,1718339997894,7923.91024545,9.999e-05,2]
[329437635,1718340065266,2096.36537383,9.999e-05,2]
[329437640,1718340083300,533.68494379,9.999e-05,2]
[329437651,1718340142409,10000.0,0.00014,2]
[329437654,1718340157997,10000.0,0.00014,2]
[329437692,1718340605559,-379.85401235,0.00014903,2]
[329437693,1718340605619,-379.85401235,0.00014903,2]
[329437694,1718340605694,-179.50622096,0.00014903,2]
[329437695,1718340605779,-379.85401235,0.00014903,2]
[329437746,1718340647191,-1338.72358703,0.00014903,2]
[329437748,1718340647205,-22.90139648,0.00014904,2]
[329437750,1718340647411,-2633.91699226,0.00014904,2]
[329437752,1718340647449,-4924.09297749,0.00014904,2]
[329437757,1718340648134,-11177.70320338,0.00014904,2]
[329437758,1718340648149,-641.80489149,0.00014904,2]
[329437764,1718340651133,-5499.5805389,0.00014904,2]
[329437765,1718340651165,-213.654432,0.00015279,2]
[329437766,1718340651196,-2514.1154503,0.00015306,2]
[329437767,1718340651208,-698.674116,0.00015527,2]
[329437768,1718340651224,-3596.94409,0.00015627,2]
[329437769,1718340651238,-453.96474177,0.00016015,2]
[329437770,1718340651261,-2037.59250395,0.00016016,2]
[329437771,1718340651296,-332.842202,0.00016164,2]
[329437772,1718340651323,-394.28367128,0.000164,2]
[329437773,1718340651356,-275.75376351,0.000165,2]
[329437774,1718340651369,-500.0,0.00016728,2]
[329437775,1718340651382,-502.93696462,0.00016728,2]
[329437776,1718340651395,-506.07020879,0.00016728,2]
[329437777,1718340651414,-340.49730436,0.00016728,2]
[329437778,1718340651473,-3254.33991745,0.00016729,2]
[329437779,1718340651485,-153.5866902,0.00016904,2]
[329437780,1718340651496,-500.0,0.00017002,2]
[329437781,1718340651516,-410.4987418,0.00017178,2]
[329437782,1718340651529,-329.7798381,0.00017178,2]
[329437783,1718340651540,-500.0,0.00017276,2]
[329437784,1718340651551,-1054.33736379,0.00017497,2]
[329437785,1718340651563,-501.95684335,0.00017589,2]
[329437786,1718340651578,-501.67898526,0.00017589,2]
[329437787,1718340651601,-500.0,0.00017589,2]
[329437788,1718340651614,-1010.55,0.00017589,2]
[329437789,1718340651627,-1054.33736378,0.0001759,2]
[329437790,1718340651638,-920.7,0.00017594,2]
[329437791,1718340651653,-500.0,0.00017594,2]
[329437792,1718340651685,-500.0,0.00017594,2]
[329437793,1718340651701,-500.0,0.00017594,2]
[329437794,1718340651713,-502.22130236,0.00017594,2]
[329437795,1718340651726,-615.82,0.00017594,2]
[329437796,1718340651742,-500.0,0.00017594,2]
[329437797,1718340651755,-500.0,0.00017594,2]
[329437798,1718340651781,-731.66,0.00017594,2]
[329437799,1718340651793,-500.0,0.00017594,2]
[329437800,1718340651805,-504.09061484,0.00017594,2]
[329437801,1718340651818,-502.56965614,0.00017594,2]
[329437802,1718340651836,-500.96050732,0.00017594,2]
[329437803,1718340651848,-502.06399416,0.00017594,2]
[329437804,1718340651868,-274.28836082,0.00017594,2]
[329437805,1718340651881,-506.53660044,0.00017594,2]
[329437806,1718340651919,-504.27702645,0.00017594,2]
[329437807,1718340651938,-502.86563353,0.00017594,2]
[329437808,1718340651960,-505.59409326,0.00017594,2]
[329437809,1718340651974,-500.0,0.00017594,2]
[329437810,1718340651990,-503.0037364,0.00017595,2]
[329437811,1718340652005,-506.851412,0.00017595,2]
[329437812,1718340652019,-159.54074168,0.00017595,2]
[329437813,1718340652046,-548.45811341,0.00017595,2]
[329437814,1718340652075,-512.63496278,0.00017595,2]
[329437815,1718340652098,-500.40921051,0.00017595,2]
[329437816,1718340652122,-500.0,0.00017595,2]
[329437817,1718340652158,-505.19325698,0.00017595,2]
[329437818,1718340652172,-503.94547247,0.00017595,2]
[329437819,1718340652184,-504.63358678,0.00017595,2]
[329437820,1718340652210,-506.57727292,0.00017595,2]
[329437821,1718340652236,-509.53292165,0.00017595,2]
[329437822,1718340652274,-500.40470369,0.00017595,2]
[329437823,1718340652286,-503.10559058,0.00017595,2]
[329437824,1718340652297,-500.33981249,0.00017595,2]
[329437825,1718340652331,-503.56809398,0.00017595,2]
[329437826,1718340652342,-502.02481497,0.00017595,2]
[329437827,1718340652353,-502.41826737,0.00017595,2]
[329437828,1718340652367,-338.80189111,0.00017595,2]
[329437829,1718340652400,-605.69391617,0.00017595,2]
[329437830,1718340652412,-506.5730609,0.00017595,2]
[329437831,1718340652423,-536.36,0.00017595,2]
[329437832,1718340652434,-500.0,0.00017595,2]
[329437833,1718340652459,-507.49283917,0.00017595,2]
[329437834,1718340652480,-500.0,0.00017595,2]
[329437835,1718340652492,-510.50885395,0.00017595,2]
[329437836,1718340652507,-699.58,0.00017595,2]
[329437837,1718340652530,-633.36,0.00017595,2]
[329437838,1718340652544,-558.59301469,0.00017595,2]
[329437839,1718340652557,-502.80449853,0.00017595,2]
[329437840,1718340652569,-508.47192014,0.00017595,2]
[329437841,1718340652588,-509.61595181,0.00017595,2]
[329437842,1718340652605,-1501.16,0.00017595,2]
[329437843,1718340652615,-505.13903364,0.00017595,2]
[329437844,1718340652633,-500.18688618,0.00017595,2]
[329437845,1718340652644,-502.30563746,0.00017595,2]
[329437846,1718340652657,-500.0,0.00017596,2]
[329437847,1718340652672,-502.9391374,0.00017596,2]
[329437848,1718340652696,-516.99732429,0.00017596,2]
[329437849,1718340652716,-500.0,0.00017596,2]
[329437850,1718340652734,-504.21340049,0.00017596,2]
[329437851,1718340652751,-506.14448926,0.00017596,2]
[329437852,1718340652763,-510.48821151,0.00017596,2]
[329437853,1718340652778,-500.0,0.00017596,2]
[329437854,1718340652791,-500.0,0.00017596,2]
[329437855,1718340652820,-510.48041655,0.00017596,2]
[329437856,1718340652853,-500.0,0.00017596,2]
[329437857,1718340652882,-500.0,0.00017596,2]
[329437858,1718340652894,-501.35884929,0.00017596,2]
[329437859,1718340652906,-501.33429477,0.00017596,2]
[329437860,1718340652918,-500.0,0.00017596,2]
[329437861,1718340652932,-501.18948794,0.00017596,2]
[329437862,1718340652949,-535.2556573,0.00017596,2]
[329437863,1718340652967,-504.83541012,0.00017596,2]
[329437864,1718340652978,-920.7,0.00017596,2]
[329437865,1718340652990,-505.64322017,0.00017596,2]
[329437866,1718340653013,-501.51199796,0.00017596,2]
[329437867,1718340653026,-521.99335121,0.00017596,2]
[329437868,1718340653040,-192.219502,0.00017596,2]
[329437869,1718340653054,-192.219502,0.00017596,2]
[329437870,1718340653084,-505.48666185,0.00017596,2]
[329437871,1718340653101,-151.0,0.00017596,2]
[329437872,1718340653113,-505.23833852,0.00017596,2]
[329437873,1718340653136,-151.0,0.00017596,2]
[329437874,1718340653155,-151.0,0.00017596,2]
[329437875,1718340653193,-151.186798,0.00017596,2]
[329437876,1718340653206,-151.0,0.00017596,2]
[329437877,1718340653232,-500.0,0.00017596,2]
[329437878,1718340653256,-278.416334,0.00017596,2]
[329437879,1718340653268,-278.416334,0.00017596,2]
[329437880,1718340653281,-225.405334,0.00017596,2]
[329437881,1718340653297,-151.0,0.00017596,2]
[329437882,1718340653310,-225.405334,0.00017596,2]
[329437883,1718340653320,-500.0,0.00017596,2]
[329437884,1718340653332,-547.0,0.00017596,2]
[329437885,1718340653344,-2910.199799,0.00017596,2]
[329437886,1718340653357,-2910.199799,0.00017596,2]
[329437887,1718340653370,-2910.199799,0.00017596,2]
[329437888,1718340653383,-2910.199799,0.00017596,2]
[329437889,1718340653394,-1501.09025541,0.00017596,2]
[329437890,1718340653408,-503.28761028,0.00017597,2]
[329437891,1718340653420,-501.3569252,0.00017597,2]
[329437892,1718340653434,-505.16236742,0.00017597,2]
[329437893,1718340653449,-503.26988844,0.00017597,2]
[329437894,1718340653461,-502.18226731,0.00017597,2]
[329437895,1718340653474,-500.18187988,0.00017597,2]
[329437896,1718340653490,-508.88322818,0.00017597,2]
[329437897,1718340653524,-165.108729,0.00017597,2]
[329437898,1718340653547,-165.108729,0.00017597,2]
[329437899,1718340653561,-151.0,0.00017597,2]
[329437900,1718340653577,-183.188565,0.00017597,2]
[329437901,1718340653591,-192.646574,0.00017597,2]
[329437902,1718340653602,-192.646574,0.00017597,2]
[329437903,1718340653615,-192.646574,0.00017597,2]
[329437904,1718340653627,-192.646574,0.00017597,2]
[329437905,1718340653640,-151.0,0.00017597,2]
[329437906,1718340653651,-151.0,0.00017597,2]
[329437907,1718340653674,-151.0,0.00017597,2]
[329437908,1718340653706,-151.0,0.00017597,2]
[329437909,1718340653720,-277.459009,0.00017597,2]
[329437910,1718340653732,-353.4424727,0.00017597,2]
[329437911,1718340653745,-920.7,0.00017597,2]
[329437912,1718340653769,-920.7,0.00017597,2]
[329437913,1718340653900,-151.0,0.00017597,2]
[329437914,1718340653913,-151.0,0.00017597,2]
[329437915,1718340653932,-151.0,0.00017597,2]
[329437916,1718340653946,-503.09346687,0.00017597,2]
[329437917,1718340653959,-192.219502,0.00017597,2]
[329437918,1718340653980,-192.219502,0.00017597,2]
[329437919,1718340653997,-192.219502,0.00017597,2]
[329437920,1718340654008,-192.219502,0.00017597,2]
[329437921,1718340654022,-192.219502,0.00017597,2]
[329437922,1718340654054,-192.219502,0.00017597,2]
[329437923,1718340654067,-151.0,0.00017597,2]
[329437924,1718340654081,-151.0,0.00017597,2]
[329437925,1718340654110,-151.0,0.00017597,2]
[329437926,1718340654161,-151.0,0.00017597,2]
[329437927,1718340654181,-151.0,0.00017597,2]
[329437928,1718340654193,-151.0,0.00017597,2]
[329437929,1718340654211,-151.0,0.00017597,2]
[329437930,1718340654226,-151.0,0.00017597,2]
[329437931,1718340654249,-151.0,0.00017597,2]
[329437932,1718340654266,-151.0,0.00017597,2]
[329437933,1718340654276,-286.004016,0.00017597,2]
[329437934,1718340654303,-278.416334,0.00017597,2]
[329437935,1718340654315,-278.416334,0.00017597,2]
[329437936,1718340654333,-278.416334,0.00017597,2]
[329437937,1718340654355,-278.416334,0.00017597,2]
[329437938,1718340654368,-278.416334,0.00017597,2]
[329437939,1718340654390,-278.416334,0.00017597,2]
[329437940,1718340654414,-225.405334,0.00017597,2]
[329437941,1718340654443,-225.405334,0.00017597,2]
[329437942,1718340654503,-225.405334,0.00017597,2]
[329437943,1718340654528,-151.0,0.00017597,2]
[329437944,1718340654548,-225.405334,0.00017597,2]
[329437945,1718340654592,-225.405334,0.00017597,2]
[329437946,1718340654625,-225.405334,0.00017597,2]
[329437947,1718340654666,-167.359333,0.00017597,2]
[329437948,1718340654686,-2910.199799,0.00017597,2]
[329437949,1718340654701,-2910.199799,0.00017597,2]
[329437950,1718340654722,-2910.199799,0.00017597,2]
[329437951,1718340654752,-2910.199799,0.00017597,2]
[329437952,1718340654765,-155.0356582,0.00017597,2]
[329437953,1718340654777,-8373.79247565,0.00017598,15]
[329437954,1718340654793,-854.60441599,0.00017598,15]
[329438007,1718341835797,-310.0,0.00015173,2]
[329438009,1718341835828,-2048.81293769,0.00015173,2]
[329438011,1718341835845,-298.97890735,0.00015173,2]
[329438013,1718341835876,-201.02109265,0.00015173,2]
[329438015,1718341835908,-12.63334055,0.00015173,2]
[329438016,1718341835960,-2016.2661871,0.00015174,2]
[329438017,1718341835981,-22883.7338129,0.00015174,2]
[329438018,1718341836032,-316.200091,0.00016164,2]
[329438019,1718341836046,-394.28367128,0.00016499,2]
[329438020,1718341836057,-275.75376351,0.000165,2]
[329438021,1718341836070,-632.6024183,0.00016628,2]
[329438022,1718341836086,-500.0,0.00016725,2]
[329438028,1718341836281,-500.0,0.00016725,2]
[329438031,1718341836297,-500.0,0.00016725,2]
[329438032,1718341836323,-515.0657579,0.00016725,2]
[329438034,1718341836336,-500.0,0.00016725,2]
[329438036,1718341836347,-500.0,0.00016725,2]
[329438038,1718341836358,-514.01,0.00016725,2]
[329438039,1718341836380,-767.25,0.00016725,2]
[329438041,1718341836390,-500.0,0.00016725,2]
[329438043,1718341836402,-516.47936675,0.00016725,2]
[329438045,1718341836412,-500.0,0.00016725,2]
[329438047,1718341836422,-502.18644658,0.00016725,2]
[329438049,1718341836433,-670.43,0.00016725,2]
[329438050,1718341836444,-500.0,0.00016725,2]
[329438052,1718341836455,-500.31909235,0.00016725,2]
[329438054,1718341836469,-501.6013824,0.00016725,2]
[329438057,1718341836490,-500.0,0.00016725,2]
[329438059,1718341836504,-500.58104828,0.00016725,2]
[329438061,1718341836527,-606.97,0.00016725,2]
[329438065,1718341836571,-529.23809192,0.00016725,2]
[329438066,1718341836605,-500.0,0.00016725,2]
[329438067,1718341836616,-830.87189069,0.00016725,2]
[329438068,1718341836761,-607.73810931,0.00016725,2]
[329438069,1718341836777,-635.78,0.00016725,2]
[329438070,1718341836832,-502.23577849,0.00016725,2]
[329438071,1718341836848,-500.0,0.00016725,2]
[329438072,1718341836859,-500.0,0.00016725,2]
[329438073,1718341836869,-733.16,0.00016725,2]
[329438074,1718341836880,-287.28,0.00016725,2]
[329438075,1718341836894,-163.19890239,0.00016725,2]
[329438076,1718341836913,-336.80109761,0.00016725,2]
[329438077,1718341836924,-179.40657873,0.00016725,2]
[329438078,1718341836938,-320.59342127,0.00016725,2]
[329438079,1718341836950,-910.1459882,0.00016725,2]
[329438123,1718341847971,-154.5640118,0.00016725,2]
[329438125,1718341847984,-500.0,0.00016725,2]
[329438127,1718341848002,-621.1,0.00016725,2]
[329438129,1718341848014,-500.0,0.00016725,2]
[329438131,1718341848027,-4107.2610262,0.00016726,2]
[329438224,1718341849530,-18494.67046869,0.00016726,2]
[329438226,1718341849542,-3375.31743702,0.00016779,2]
[329438227,1718341849556,-153.0,0.000168,2]
[329438229,1718341849568,-413.12284539,0.00016999,2]
[329438231,1718341849580,-594.31,0.00016999,2]
[329438233,1718341849590,-500.0,0.00016999,2]
[329438235,1718341849602,-514.01,0.00016999,2]
[329438237,1718341849613,-370.17,0.00016999,2]
[329438239,1718341849623,-670.43,0.00016999,2]
[329438241,1718341849633,-500.0,0.00016999,2]
[329438243,1718341849658,-500.0,0.00016999,2]
[329438244,1718341849676,-606.97,0.00016999,2]
[329438247,1718341849691,-1438.61,0.00016999,2]
[329438249,1718341849710,-635.78,0.00016999,2]
[329438252,1718341849764,-500.0,0.00016999,2]
[329438254,1718341849780,-733.16,0.00016999,2]
[329438257,1718341849818,-500.0,0.00016999,2]
[329438259,1718341849830,-500.0,0.00016999,2]
[329438261,1718341849841,-1064.71,0.00016999,2]
[329438263,1718341849853,-280.72424299,0.00016999,2]
[329438265,1718341849868,-621.1,0.00016999,2]
[329438267,1718341849880,-500.0,0.00016999,2]
[329438269,1718341849891,-632.60241826,0.00017171,2]
[329438271,1718341849905,-500.0,0.00017273,2]
[329438273,1718341849923,-514.01,0.00017273,2]
[329438275,1718341849939,-670.43,0.00017273,2]
[329438277,1718341849950,-370.34333936,0.00017273,2]
[329438279,1718341849962,-500.0,0.00017273,2]
[329438282,1718341849978,-606.97,0.00017273,2]
[329438284,1718341850000,-1438.61,0.00017273,2]
[329438285,1718341850011,-635.78,0.00017273,2]
[329438287,1718341850025,-500.0,0.00017273,2]
[329438289,1718341850041,-733.16,0.00017273,2]
[329438290,1718341850065,-500.0,0.00017273,2]
[329438291,1718341850086,-1064.71,0.00017273,2]
[329438292,1718341850113,-621.1,0.00017273,2]
[329438293,1718341850129,-500.0,0.00017273,2]
[329438294,1718341850141,-500.0,0.00017547,2]
[329438295,1718341850155,-514.01,0.00017547,2]
[329438296,1718341850168,-670.43,0.00017547,2]
[329438297,1718341850180,-500.0,0.00017547,2]
[329438298,1718341850196,-606.97,0.00017547,2]
[329438299,1718341850210,-1438.61,0.00017547,2]
[329438300,1718341850229,-635.78,0.00017547,2]
[329438301,1718341850241,-500.0,0.00017547,2]
[329438302,1718341850256,-733.16,0.00017547,2]
[329438303,1718341850268,-500.0,0.00017547,2]
[329438305,1718341850289,-1064.71,0.00017547,2]
[329438307,1718341850311,-621.1,0.00017547,2]
[329438309,1718341850322,-500.0,0.00017547,2]
[329438311,1718341850341,-275.0873769,0.00017593,2]
[329438313,1718341850358,-767.25,0.00017593,2]
[329438316,1718341850382,-151.0,0.00017594,2]
[329438318,1718341850404,-151.0,0.00017594,2]
[329438320,1718341850424,-151.0,0.00017594,2]
[329438322,1718341850445,-1746.119879,0.00017594,2]
[329438324,1718341850465,-1746.119879,0.00017594,2]
[329438326,1718341850487,-151.0,0.00017594,2]
[329438328,1718341850499,-151.0,0.00017594,2]